{"text_format":"1","workbook":"xlsx","n_sheets":2,"sheets":["Giunti","Unità misura e prezzi"],"not_rendered":{"charts":0,"images":1,"macros":1,"external_links":0,"defined_names":6,"comments":0,"pivot_tables":0},"unopened":[],"bounds":{"document_bytes":16777216,"sheet_cells":100000,"rows_first":2000,"rows_last":500,"rows_between":2000,"halvings":0,"cell_chars":16384,"cell_head_chars":4096},"cells_cut":0,"cells_raw":0,"read":"whole","date_system":"1900"}

{"sheet":"Giunti","index":0,"n_rows":32,"n_cols":18,"rows_kept":32,"cut":false,"hidden":false,"merged":[[14,11,14,13],[15,11,15,13],[27,0,27,6],[20,0,20,2],[17,0,17,2],[16,11,16,13],[0,1,2,6],[30,0,30,6],[31,0,31,6],[28,3,28,5],[28,1,28,2],[15,0,15,2],[14,0,14,2],[16,0,16,2],[13,0,13,2],[6,0,11,6],[3,0,3,3],[3,6,5,6],[3,4,3,5]]}
[null,"Applicazione di giunto di dilatazione in PVC per Sistemi Termocoibenti"]
[]
[]
[]
["Elemento"]
["Giunto di Dilatazione Facciata"]
[{"$f":"_xlfn.CONCAT('Unità misura e prezzi'!G5,Giunti!A6,'Unità misura e prezzi'!H5,'Unità misura e prezzi'!J5)","v":"Fornitura e posa in opera di giunto di frazionamento in PVC munito di rete di collegamento ai sistemi termocoibenti in fibra di vetro  - tipo Giunto di Dilatazione Facciata di Kerakoll. Il prezzo è per metro lineare di giunto effettivamente posto in opera. E' altresì compresa la fornitura e posa in opera di tutti i materiali sopra descritti e quanto altro occorre per dare il lavoro finito. Sono esclusi: il materiale per la rasatura, le indagini pre e post intervento; tutti i sussidi necessari per l'esecuzione dei lavori ricadenti all'interno dei costi della sicurezza indiretti."}]
[]
[]
[]
[]
[]
["DESCRIZIONE",null,null,"U.M.","QUANTITA'","PREZZO UNITARIO*","PREZZO COMPLETO"]
["RISORSE UMANE (RU) "]
["Applicazione del giunto",null,null,null,null,null,null,null,"OPERAIO QUALIFICATO (MO1003)",null,null,{"$f":"INDEX(lavorazioni_secondostrato,(VLOOKUP($B$1,lavorazioni_secondostrato,2,FALSE)+1),3)","v":{"$error":"#NAME?"}}]
[{"$f":"IF(A15=0,\"\",$I$15)","v":"OPERAIO QUALIFICATO (MO1003)"},null,null,{"$f":"IFERROR(VLOOKUP(A16,PRZ,3,FALSE),\"\")","v":"H/mq"},0.08,{"$f":"IFERROR(VLOOKUP(A16,PRZ,4,FALSE),\"\")","v":29.25},{"$f":"IFERROR(E16*F16,\"\")","v":2.34},null,null,null,null,{"$f":"IF(L15=0,\"\",$I$15)","v":{"$error":"#NAME?"}},null,null,{"$f":"IFERROR(VLOOKUP(L16,prezzi,2,FALSE),\"\")","v":""},{"$f":"IF(L16=$I$15,VLOOKUP(L15,#REF!,2,FALSE),IF(L16=$I$16,VLOOKUP(L14,#REF!,2,FALSE),\"\"))","v":{"$error":"#NAME?"}},{"$f":"IFERROR(VLOOKUP(L16,prezzi,3,FALSE),\"\")","v":""},{"$f":"IFERROR(P16*Q16,\"\")","v":""}]
[null,null,null,{"$f":"IFERROR(VLOOKUP(A17,prezzi,2,FALSE),\"\")","v":""},{"$f":"IF(A17=$I$15,VLOOKUP(#REF!,QTA,2,FALSE),\"\")","v":""},"sommano RU",{"$f":"SUM(G16:G16)","v":2.34},null,null,null,null,null,null,null,"",{"$f":"IF(L17=$I$15,VLOOKUP(#REF!,#REF!,2,FALSE),IF(L17=$I$16,VLOOKUP(#REF!,#REF!,2,FALSE),\"\"))","v":{"$error":"#REF!"}},"sommano RU",{"$f":"SUM(R16:R16)","v":0}]
["PRODOTTI DA COSTRUZIONE (PR) ",null,null,{"$f":"IFERROR(VLOOKUP(A18,prezzi,2,FALSE),\"\")","v":""}]
[{"$f":"A6","v":"Giunto di Dilatazione Facciata"},null,null,"m/m",1,{"$f":"IFERROR(VLOOKUP(A19,'Unità misura e prezzi'!B2:E7,4,FALSE),\"\")","v":13.058},{"$f":" IFERROR(F19*E19,\"\")","v":13.058}]
[null,null,null,"",null,"sommano PR",{"$f":"SUM(G19:G19)","v":13.058}]
["ATTREZZATURE (AT) "]
["NOLO DI STRUMENTAZIONE DA CANTIERE",null,null,"H/m",0.01,8,{"$f":" F22*E22","v":0.08}]
["TRASPORTO MATERIALI DI CONSUMO",null,null,"kg/m",{"$f":"0.1","v":0.1},{"$f":"0.02","v":0.02},{"$f":" F23*E23","v":2E-3}]
[null,null,null,null,null,"sommano AT",{"$f":"SUM(G22:G23)","v":8.2000000000000003E-2}]
[null,null,null,null,null,"Costo Tecnico (CT)",{"$f":"SUM(G24,G20,G17)","v":15.48}]
[null,null,null,null,null,"Costo indiretto (SG) 17,00%",{"$f":"G25*0.17","v":2.6316000000000002}]
[null,null,null,null,null,"Costo figurativo (U) 10,00%",{"$f":"(G25+G26)*0.1","v":1.8111600000000001}]
["* Prezzi materiali Kerakoll = Listino 07-2025. Prezzi manodopera = Prezziario DEI (I Semestre 2025) - Media Nazionale."]
[null,"RU+PR+AT+SG+U",null," PREZZO COMPLESSIVO AL METRO",null,null,{"$f":"G25+G26+G27","v":19.92276}]
[]
["Voce di capitolato "]
[{"$f":"_xlfn.CONCAT('Unità misura e prezzi'!G5,Giunti!A6,'Unità misura e prezzi'!H5,'Unità misura e prezzi'!J6)","v":"Fornitura e posa in opera di giunto di frazionamento in PVC munito di rete di collegamento ai sistemi termocoibenti in fibra di vetro  - tipo Giunto di Dilatazione Facciata di Kerakoll. \nL'intervento si svolge nelle seguenti fasi: \na) Applicare il rasante (da contabilizzare a parte) e annegare le retine di collegamento. \nLa valutazione è espressa per metro lineare di giunto effettivamente posto in opera."}]

{"sheet":"Unità misura e prezzi","index":1,"n_rows":7,"n_cols":10,"rows_kept":7,"cut":false,"hidden":true,"merged":[]}
[]
[null,"Prodotto ",null,"UM","Prezzo"]
[null,"OPERAIO QUALIFICATO (MO1003)",null,"H/mq",29.25]
[]
[null,"Giunto di Dilatazione Facciata",null,"m/m",13.058,null,"Fornitura e posa in opera di giunto di frazionamento in PVC munito di rete di collegamento ai sistemi termocoibenti in fibra di vetro  - tipo "," di Kerakoll. ",null,"Il prezzo è per metro lineare di giunto effettivamente posto in opera. E' altresì compresa la fornitura e posa in opera di tutti i materiali sopra descritti e quanto altro occorre per dare il lavoro finito. Sono esclusi: il materiale per la rasatura, le indagini pre e post intervento; tutti i sussidi necessari per l'esecuzione dei lavori ricadenti all'interno dei costi della sicurezza indiretti."]
[null,"Giunto di Dilatazione ad Angolo",null,"m/m",12.07,null,null,null,null,"\nL'intervento si svolge nelle seguenti fasi: \na) Applicare il rasante (da contabilizzare a parte) e annegare le retine di collegamento. \nLa valutazione è espressa per metro lineare di giunto effettivamente posto in opera."]
[null,"Giunto di Dilatazione Plus",null,"m/m",6.3620000000000001]